bitfinex/quotes_ETHUSD_20250404
["timestamp","ask_amount","ask_price","bid_price","bid_amount"]
[1743732123645,6.36211,1791.7,1791.3,5.58249]
[1743732123847,6.36211,1791.7,1790.7,6.94496]
[1743732123848,5.58203,1791.5,1791.1,5.58303]
[1743732124149,5.58229,1791.4,1791.0,11.16668]
[1743732124466,0.7808,1791.7,1791.5,5.5818]
[1743732124660,0.7808,1791.7,1791.5,5.58178]
[1743732124860,11.463,1791.9,1791.4,5.58222]
[1743732125160,0.7808,1792.0,1791.8,5.58074]
[1743732125460,0.7808,1792.0,1791.7,5.58117]
[1743732125659,5.58111,1791.8,1790.9,5.58373]
[1743732125863,5.58221,1791.5,1791.0,5.58327]
[1743732126066,0.7808,1791.4,1791.2,5.58283]
[1743732126261,0.7808,1791.4,1791.2,11.16551]
[1743732126462,0.7808,1791.4,1791.2,5.58268]
[1743732126868,0.7808,1791.4,1791.3,5.58253]
[1743732127068,0.7808,1791.4,1791.2,5.58266]
[1743732127460,0.7808,1791.4,1790.9,5.58376]
[1743732127648,0.7808,1791.4,1791.1,5.58297]
[1743732127839,0.7808,1791.4,1791.2,5.58269]
[1743732128042,0.8009,1792.0,1791.3,5.58253]
[1743732128251,0.8009,1792.0,1791.7,5.58126]
[1743732128450,0.8009,1792.0,1791.8,5.58083]
[1743732128668,0.8009,1792.4,1792.1,5.57982]
[1743732128873,4.40499808,1792.3,1791.0,5.5834]
[1743732129075,0.8009,1792.0,1791.3,5.5823]
[1743732129381,5.58175,1791.6,1791.2,5.58274]
[1743732129675,5.20589808,1792.0,1791.4,5.58222]
[1743732129851,6.38128,1792.0,1791.6,5.58137]
[1743732130178,5.58079,1791.9,1791.5,5.58162]
[1743732130342,11.16166,1791.9,1791.5,5.58162]
[1743732130543,5.58079,1791.9,1791.5,5.58162]
[1743732130753,5.58079,1791.9,1791.6,5.58159]
[1743732130953,6.38138,1792.0,1791.6,5.58159]
[1743732131153,5.58069,1791.9,1791.6,5.58155]
[1743732131451,5.58069,1791.9,1791.5,5.58162]
[1743732131668,11.16154,1791.9,1791.5,5.58162]
[1743732132176,0.8009,1792.0,1791.8,5.58082]
[1743732132743,6.38125,1792.0,1791.6,11.163]
[1743732133171,11.9618,1792.0,1791.6,5.58144]
[1743732133343,6.38125,1792.0,1791.6,11.16293]
[1743732133542,6.38125,1792.0,1791.6,5.58144]
[1743732133975,6.38125,1792.0,1791.7,5.58127]
[1743732134583,6.38125,1792.0,1791.6,11.16293]
[1743732134879,6.38125,1792.0,1791.6,11.16291]
[1743732135077,0.8009,1792.0,1791.5,5.58185]
[1743732135287,5.58107,1791.8,1791.4,11.16432]
[1743732135574,5.58066,1791.9,1791.6,5.58158]
[1743732135781,5.58066,1791.9,1791.5,5.58189]
[1743732135942,5.58066,1791.9,1791.2,5.58282]
[1743732135943,5.58181,1791.6,1791.3,5.58251]
[1743732136143,5.58129,1791.7,1790.8,6.92318]
[1743732136349,5.58237,1791.4,1791.0,11.16664]
[1743732136580,11.164,1791.5,1791.1,11.16608]
[1743732136894,11.16408,1791.5,1791.1,5.58302]
[1743732137093,5.58224,1791.4,1791.1,5.58302]
[1743732137251,5.58197,1791.5,1791.1,11.16606]
[1743732137465,5.58197,1791.5,1791.1,5.58302]
[1743732137466,11.16408,1791.5,1791.1,5.58302]
[1743732138176,5.58197,1791.5,1791.1,5.58302]
[1743732138657,5.58264,1791.3,1790.9,5.58374]
[1743732138864,5.58264,1791.3,1790.9,11.16726]
[1743732139177,11.1646,1791.4,1791.0,5.58331]
[1743732139378,0.41898692,1791.8,1791.1,0.05583013]
[1743732139564,0.638156,1791.9,1791.5,5.58181]
[1743732139565,5.58073,1791.9,1791.5,5.58181]
[1743732139771,5.58073,1791.9,1790.9,6.18937491]
[1743732139772,11.96179,1792.0,1791.6,11.163]
[1743732139973,0.8009,1792.0,1791.7,5.58115]
[1743732140390,5.58114,1791.8,1791.4,5.58212]
[1743732140706,0.8009,1792.0,1791.8,5.58088]
[1743732140998,0.8009,1792.0,1791.8,11.16171]
[1743732141374,5.57979,1792.2,1791.9,5.58066]
[1743732141583,46.57636,1792.3,1791.9,5.58066]
[1743732142098,6.37956,1792.6,1792.1,5.57976]
[1743732142290,6.37956,1792.6,1792.2,5.57963]
[1743732142291,11.95823,1792.6,1792.2,5.57963]
[1743732142496,3.0,1792.5,1792.2,5.57963]
[1743732142973,0.8009,1792.6,1792.2,5.57961]
[1743732143180,0.8009,1792.6,1792.3,11.15854]
[1743732143376,0.8009,1792.6,1792.3,5.57917]
[1743732143597,0.8009,1792.6,1792.4,5.5791]
[1743732144014,5.57794,1792.8,1792.4,11.15804]
[1743732144412,10.78234808,1792.9,1792.5,11.15747]
[1743732144604,10.78234808,1792.9,1792.0,0.7616]
[1743732144605,0.7996,1792.9,1792.6,5.57828]
[1743732145312,6.37627,1793.2,1792.8,5.57772]
[1743732145477,6.37627,1793.2,1792.8,11.15547]
[1743732145681,6.37627,1793.2,1792.9,5.57752]
[1743732145682,0.7996,1793.2,1792.9,5.57752]
[1743732146193,0.7996,1793.2,1792.9,11.15482]
[1743732146396,0.7996,1793.2,1792.9,5.57737]
[1743732146784,0.7996,1793.2,1792.5,6.1288]
[1743732147117,0.7996,1793.5,1792.7,5.57817]
[1743732147283,5.57507,1793.7,1793.3,5.57611]
[1743732147482,0.8496,1793.9,1793.7,5.57495]
[1743732147679,0.05,1793.9,1793.7,5.57495]
[1743732147896,0.05,1793.9,1793.6,5.57521]
[1743732148215,0.05,1793.9,1793.7,5.57502]
[1743732148385,0.05,1793.9,1793.6,5.57519]
[1743732149235,5.57519,1793.7,1793.2,5.57662]
[1743732149525,3.7996,1793.5,1792.7,6.33962]
[1743732149831,5.57665,1793.2,1792.7,5.57802]
[1743732150381,5.57665,1793.2,1792.8,5.57776]
[1743732150586,5.57712,1793.1,1792.7,5.57802]
[1743732150800,5.57695,1793.1,1792.8,5.57776]
[1743732151027,5.57695,1793.1,1792.7,5.57802]
[1743732151230,5.57724,1793.0,1792.7,5.57802]
[1743732151529,5.57672,1793.2,1792.8,5.57785]
[1743732151747,5.57695,1793.1,1792.7,5.57802]
[1743732152108,5.57695,1793.1,1792.7,11.15603]
[1743732152311,5.57631,1793.3,1792.7,5.57813]
[1743732152536,5.5771,1793.1,1792.8,5.57784]
[1743732152739,5.5771,1793.1,1792.7,5.57804]
[1743732153248,11.15422,1793.1,1792.7,5.57804]
[1743732153446,5.5771,1793.1,1792.7,5.57804]
[1743732153746,11.15421,1793.1,1792.7,5.57804]
[1743732153948,11.15429,1793.1,1792.7,5.57804]
[1743732154333,5.57726,1793.0,1792.6,5.57843]
[1743732154534,5.5771,1793.1,1792.7,5.57815]
[1743732154740,11.15424,1793.1,1792.7,5.57815]
[1743732154919,5.57725,1793.0,1792.7,5.57815]
[1743732155121,5.5784,1792.7,1792.3,6.34092]
[1743732155321,5.57748,1793.0,1792.5,5.5785]
[1743732155530,11.15496,1793.0,1792.6,5.63424749]
[1743732155731,11.15496,1793.0,1792.6,5.57847]
[1743732156045,5.57748,1793.0,1792.6,11.15679]
[1743732156347,5.57697,1793.1,1792.7,5.63394744]
[1743732156528,11.1541,1793.1,1792.7,5.57817]
[1743732156730,5.5774,1793.0,1792.6,5.57838]
[1743732156927,11.15482,1793.0,1792.6,5.57838]
[1743732157132,5.57774,1792.9,1792.5,5.57854]
[1743732157769,5.57728,1793.0,1792.6,5.57835]
[1743732158070,11.15472,1793.0,1792.6,5.57835]
[1743732158366,6.37726,1792.8,1792.4,5.5791]
[1743732158566,5.57735,1793.0,1792.6,5.57846]
[1743732158869,11.15479,1793.0,1792.6,5.57846]
[1743732159036,6.37619,1793.1,1792.7,5.57797]
[1743732159231,0.7992,1793.1,1792.8,5.5778]
[1743732159850,6.37614,1793.1,1792.7,5.57797]
[1743732160068,5.57739,1793.0,1792.6,11.15676]
[1743732160232,11.95325,1793.1,1792.7,5.5781]
[1743732160637,6.37614,1793.1,1792.7,5.57804]
[1743732161022,5.57669,1793.2,1792.8,5.57769]
[1743732161318,5.57695,1793.1,1792.7,5.5781]
[1743732161722,5.57665,1793.2,1792.8,11.15556]
[1743732162051,5.57665,1793.2,1792.9,5.57751]
[1743732162244,3.0,1793.2,1792.9,5.57751]
[1743732162818,8.57665,1793.2,1792.8,5.57772]
[1743732163024,5.57632,1793.3,1792.9,5.57731]
[1743732163756,5.57632,1793.3,1792.9,11.15473]
[1743732164071,5.5755,1793.6,1793.2,5.5765]
[1743732164222,5.5755,1793.6,1793.3,5.57624]
[1743732164427,5.5755,1793.6,1793.2,5.5765]
[1743732164658,5.5755,1793.6,1793.2,11.20872936]
[1743732164836,15.52846,1793.9,1793.4,5.57572]
[1743732165028,21.10309,1793.9,1793.4,11.15156]
[1743732165229,9.954,1793.9,1793.2,5.57651]
[1743732165448,5.57495,1793.8,1793.4,5.57573]
[1743732165758,15.52856,1793.9,1793.5,5.57555]
[1743732166357,15.52856,1793.9,1793.5,11.15109]
[1743732166554,15.52856,1793.9,1793.7,5.57495]
[1743732166555,9.954,1793.9,1793.7,5.57495]
[1743732168635,9.954,1793.9,1793.4,5.57598]
[1743732168973,5.57553,1793.6,1793.2,11.15301]
[1743732169140,5.57553,1793.6,1793.2,11.15297]
[1743732169340,3.38874733,1793.8,1793.1,5.57684]
[1743732169341,5.57594,1793.5,1793.1,5.57684]
[1743732169557,5.57542,1793.6,1793.2,5.57651]
[1743732169758,5.57513,1793.7,1793.2,5.57651]
[1743732169967,15.52847,1793.9,1793.2,0.557651]
[1743732170160,8.57488,1793.8,1793.4,11.15155]
[1743732170770,8.57488,1793.8,1793.4,5.5757]
[1743732171144,3.0,1793.8,1793.5,5.57558]
[1743732171669,21.10314,1793.9,1793.7,5.57478]
[1743732171670,0.05,1793.9,1793.7,5.57478]
[1743732172060,0.05,1793.9,1793.8,5.57475]
[1743732173269,0.05,1793.9,1793.8,6.689703]
[1743732173778,0.05,1793.9,1793.8,7.442003]
[1743732174462,0.05,1793.9,1793.7,5.57478]
[1743732174660,0.05,1793.9,1793.6,5.57532]
[1743732174860,0.05,1793.9,1793.6,11.1506]
[1743732175060,0.05,1793.9,1793.6,5.57528]
[1743732175266,0.05,1793.9,1793.6,11.15049]
[1743732175446,0.05,1793.9,1793.6,5.57521]
[1743732175650,0.05,1793.9,1793.4,5.5758]
[1743732175651,9.01320733,1793.9,1793.4,5.5758]
[1743732175846,5.57498,1793.8,1793.4,5.5758]
[1743732176167,11.14999,1793.8,1793.4,5.5758]
[1743732176346,5.57511,1793.7,1793.4,5.57597]
[1743732176547,5.5754,1793.6,1793.2,5.57645]
[1743732176862,5.57511,1793.7,1793.3,5.57617]
[1743732177044,11.14975,1793.8,1793.4,5.57597]
[1743732177763,5.57507,1793.7,1793.4,5.57597]
[1743732177952,5.57481,1793.8,1793.5,5.57568]
[1743732178152,11.14975,1793.8,1793.4,5.57589]
[1743732178569,5.62468,1793.9,1793.4,5.57589]
[1743732178772,5.62468,1793.9,1793.4,11.15176]
[1743732178773,5.57477,1793.8,1793.4,11.15176]
[1743732179081,5.57477,1793.8,1793.1,6.3292]
[1743732179082,5.57517,1793.7,1793.3,11.15243]
[1743732179277,5.57517,1793.7,1793.4,5.57596]
[1743732179449,5.57475,1793.8,1793.4,5.57596]
[1743732179649,11.14971,1793.8,1793.4,5.57596]
[1743732179848,5.57475,1793.8,1793.4,11.15179]
[1743732180049,5.57475,1793.8,1793.4,5.57583]
[1743732180251,5.57475,1793.8,1793.4,11.15168]
[1743732180481,5.57475,1793.8,1793.5,5.57568]
[1743732181444,5.57475,1793.8,1793.4,5.57583]
[1743732181646,5.57475,1793.8,1793.5,5.57568]
[1743732181979,5.57475,1793.8,1793.4,11.15173]
[1743732182351,11.14972,1793.8,1793.4,5.57583]
[1743732182783,11.14972,1793.8,1792.8,6.12767]
[1743732182784,5.57599,1793.5,1793.0,5.577]
[1743732183078,5.57604,1793.4,1793.0,5.577]
[1743732183284,14.88073,1793.5,1793.1,5.57669]
[1743732183467,9.305,1793.5,1792.9,11.15493]
[1743732183675,5.57638,1793.3,1792.9,11.15493]
[1743732183984,5.57638,1793.3,1792.8,11.15559]
[1743732184158,5.57673,1793.2,1792.9,5.57745]
[1743732184366,5.57724,1793.0,1792.7,6.33035]
[1743732184663,5.57731,1793.0,1792.7,5.57805]
[1743732185266,5.57731,1793.0,1792.6,5.57842]
[1743732185455,5.57731,1793.0,1792.6,11.15671]
[1743732185784,0.7924,1793.1,1792.5,5.5788]
[1743732185988,5.57669,1793.2,1792.8,5.57759]
[1743732186398,11.15353,1793.2,1792.8,5.57759]
[1743732186551,5.57695,1793.1,1792.7,11.15614]
[1743732186759,5.57695,1793.1,1792.8,5.57785]
[1743732186982,5.57662,1793.2,1792.8,5.57785]
[1743732186983,5.57634,1793.3,1792.8,5.57771]
[1743732187186,20.35089,1793.3,1792.9,5.57743]
[1743732187790,5.57799,1792.8,1792.4,5.57901]
[1743732187955,5.57799,1792.8,1792.4,11.15798]
[1743732188361,3.0,1793.0,1792.7,5.57808]
[1743732188585,5.57765,1792.9,1792.5,11.15732]
[1743732188772,8.57753,1793.0,1792.6,5.57826]
[1743732188966,8.57753,1793.0,1792.7,5.57815]
[1743732189158,5.57759,1792.9,1792.5,5.57862]
[1743732189359,5.57698,1793.1,1792.7,5.57801]
[1743732189785,11.15408,1793.1,1792.7,5.57801]
[1743732189991,5.57737,1793.0,1792.5,5.57876]
[1743732190193,5.57769,1792.9,1792.5,11.15741]
[1743732190375,5.57769,1792.9,1792.6,5.57838]
[1743732190574,11.15547,1792.9,1792.5,5.57865]
[1743732190963,5.57769,1792.9,1792.5,11.15731]
[1743732191163,11.15547,1792.9,1792.5,5.57865]
[1743732191494,5.57769,1792.9,1792.6,5.57845]
[1743732191663,5.57769,1792.9,1792.5,11.15733]
[1743732191865,11.15544,1792.9,1792.5,5.57865]
[1743732192365,5.57837,1792.7,1792.2,5.5796]
[1743732192566,5.57849,1792.6,1792.3,5.57937]
[1743732192766,14.63017,1792.7,1792.1,5.58002]
[1743732192964,11.15814,1792.5,1792.1,5.58002]
[1743732193187,11.15815,1792.5,1792.1,5.58002]
[1743732193387,5.57907,1792.5,1792.1,5.58002]
[1743732193592,5.57912,1792.4,1792.1,5.58002]
[1743732193893,3.0,1792.5,1791.8,5.58094]
[1743732194097,5.57986,1792.2,1791.8,11.16169]
[1743732194301,5.57986,1792.2,1791.8,5.58083]
[1743732194591,5.58007,1792.1,1791.7,5.58128]
[1743732194796,6.35207,1792.2,1791.7,5.58119]
[1743732195172,5.5801,1792.1,1791.6,5.58156]
[1743732195396,5.58047,1792.0,1791.6,11.16303]
[1743732195613,5.57946,1792.3,1791.7,5.63709706]
[1743732195918,8.983,1792.3,1792.0,5.58023]
[1743732196103,8.983,1792.3,1792.0,11.16046]
[1743732196297,14.56243,1792.3,1791.9,5.58038]
[1743732196496,8.983,1792.3,1792.0,5.58022]
[1743732196720,8.983,1792.3,1792.1,5.5799]
[1743732197108,8.983,1792.3,1792.1,11.1598]
[1743732197437,8.983,1792.3,1791.7,5.58129]
[1743732197438,8.983,1792.3,1792.0,5.5802]
[1743732197639,8.983,1792.3,1792.1,5.58004]
[1743732198237,8.983,1792.3,1792.1,5.57989]
[1743732198598,8.983,1792.3,1792.0,11.16051]
[1743732199036,8.983,1792.3,1792.1,5.57998]
[1743732199344,8.983,1792.3,1792.1,11.15988]
[1743732199495,8.983,1792.3,1792.2,5.57973]
[1743732199691,6.01,1792.6,1792.0,5.58027]
[1743732199895,6.01,1792.6,1792.3,11.1586]
[1743732200206,11.58865,1792.6,1792.2,5.57967]
[1743732200406,6.01,1792.6,1792.1,5.57994]
[1743732200612,5.5789,1792.5,1792.1,5.57994]
[1743732200798,5.5789,1792.5,1792.1,5.5799]
[1743732201224,11.58852,1792.6,1792.2,5.57953]
[1743732201524,6.01,1793.2,1793.1,5.57693]
[1743732201709,0.7723,1793.6,1792.7,5.57817]
[1743732201897,6.3477,1793.6,1793.2,5.57649]
[1743732202098,0.7723,1793.6,1793.1,5.57687]
[1743732202298,14.886,1793.7,1793.4,5.57597]
[1743732202723,6.01,1793.7,1793.4,5.57589]
[1743732202942,0.8223,1793.9,1793.6,5.57527]
[1743732203240,0.05,1793.9,1793.7,5.57494]
[1743732203613,0.05,1793.9,1793.8,5.57475]
[1743732203800,0.05,1793.9,1793.8,5.63049528]
[1743732204601,0.05,1793.9,1793.8,5.63048714]
[1743732205415,0.05,1793.9,1793.7,5.57494]
[1743732205617,0.05,1793.9,1793.6,5.57535]
[1743732205932,0.05,1793.9,1793.6,11.15051]
[1743732206227,0.05,1793.9,1793.6,5.57516]
[1743732206594,6.45667,1793.9,1793.5,5.57567]
[1743732206931,5.57475,1793.8,1793.4,5.57592]
[1743732207127,11.14978,1793.8,1793.3,5.57627]
[1743732207298,5.57475,1793.8,1793.4,5.57594]
[1743732207499,6.45658,1793.9,1793.5,5.57552]
[1743732208436,12.03124,1793.9,1793.5,5.57552]
[1743732208638,12.03124,1793.9,1793.4,5.57591]
[1743732209034,5.57496,1793.8,1793.4,5.57591]
[1743732209412,6.45657,1793.9,1793.5,5.57549]
[1743732209716,0.8821,1793.9,1793.6,5.57536]
[1743732209921,6.45666,1793.9,1793.5,5.57566]
[1743732210731,0.8821,1793.9,1793.6,5.57533]
[1743732211036,6.45681,1793.9,1793.4,5.57597]
[1743732211205,5.57477,1793.8,1793.4,5.57597]
[1743732211404,5.57477,1793.8,1793.4,11.15183]
[1743732211605,6.45681,1793.9,1793.5,11.15119]
[1743732212232,6.45681,1793.9,1793.5,5.57553]
[1743732212431,0.8821,1793.9,1793.4,5.57596]
[1743732212637,0.05,1793.9,1793.8,5.57475]
[1743732213515,0.05,1793.9,1793.8,5.63049631]
[1743732214209,0.05,1793.9,1793.8,5.57475]
[1743732214609,0.05,1793.9,1793.8,5.63048718]
[1743732214946,6.06,1794.9,1794.6,5.57216]
[1743732215126,6.06,1794.9,1794.5,5.57238]
[1743732215127,11.63148,1794.9,1794.5,5.57238]
[1743732215306,6.06,1794.9,1794.1,5.57382]
[1743732215509,0.05,1794.9,1794.7,5.57193]
[1743732215740,0.05,1794.9,1794.8,5.57165]
[1743732216763,0.05,1794.9,1794.8,5.6273608]
[1743732217237,0.05,1794.9,1794.8,5.57165]
[1743732222245,0.05,1794.9,1794.5,5.57244]
[1743732222447,0.05,1794.9,1794.6,5.62782679]
[1743732222946,6.40511,1794.8,1794.3,5.57305]
[1743732223145,0.8333,1794.8,1794.0,5.574]
[1743732223351,5.57306,1794.4,1793.9,6.35643]
[1743732223549,13.95934,1794.3,1793.8,5.57465]
[1743732223853,5.57352,1794.2,1793.7,5.57483]
[1743732224017,5.57352,1794.2,1793.8,5.57473]
[1743732224219,13.95934,1794.3,1793.8,5.63047004]
[1743732224728,8.386,1794.3,1794.0,11.1479]
[1743732224929,8.386,1794.3,1794.1,0.05573258]
[1743732225129,8.386,1794.3,1794.1,5.62954258]
[1743732226245,8.386,1794.3,1794.1,5.62943258]
[1743732226450,13.88927,1794.6,1794.1,5.62943258]
[1743732226641,13.88927,1794.6,1794.1,5.5737]
[1743732226949,13.88927,1794.6,1794.1,5.57369]
[1743732227150,19.46175,1794.6,1794.1,5.57369]
[1743732227352,5.57292,1794.4,1794.0,5.5741]
[1743732227653,5.57274,1794.5,1794.0,5.57396]
[1743732228019,5.57274,1794.5,1794.0,11.14795]
[1743732228423,13.88931,1794.6,1794.1,5.57376]
[1743732228624,13.88931,1794.6,1794.2,5.57351]
[1743732228846,13.88931,1794.6,1794.1,5.57366]
[1743732229154,20.15407,1794.7,1794.2,5.62923832]
[1743732229651,14.58199,1794.7,1794.2,5.57351]
[1743732230021,14.58199,1794.7,1794.2,11.14692]
[1743732230334,9.0813,1794.8,1794.3,0.05572403]
[1743732230641,0.05,1794.9,1794.6,5.57212]
[1743732231021,0.05,1794.9,1794.5,5.57246]
[1743732231424,0.05,1794.9,1794.6,5.57224]
[1743732231726,0.05,1794.9,1794.7,5.57192]
[1743732232962,0.05,1794.9,1794.6,5.57212]
[1743732233271,0.05,1794.9,1794.7,5.57195]
[1743732233470,0.05,1794.9,1794.3,5.57307]
[1743732233634,0.05,1794.9,1794.4,5.57275]
[1743732233845,5.62134,1794.9,1794.4,5.57275]
[1743732234136,5.62134,1794.9,1794.4,11.14553]
[1743732234341,5.62134,1794.9,1794.4,5.57275]
[1743732234961,11.19298,1794.9,1794.4,5.57275]
[1743732235258,5.62134,1794.9,1794.4,5.57275]
[1743732235561,5.62134,1794.9,1794.5,0.05571958]
[1743732236064,5.62134,1794.9,1794.4,5.57275]
[1743732236264,11.19298,1794.9,1794.4,5.57275]
[1743732236480,5.57169,1794.8,1794.4,5.57275]
[1743732237082,5.57169,1794.8,1794.3,6.208647]
[1743732237083,11.14363,1794.8,1794.3,6.208647]
[1743732237232,5.57201,1794.7,1794.2,11.92895]
[1743732237563,5.57201,1794.7,1794.3,0.05572588]
[1743732237974,5.57169,1794.8,1793.9,0.781]
[1743732238143,5.57295,1794.4,1794.0,0.05573096]
[1743732238530,5.57234,1794.6,1794.1,5.5737]
[1743732238731,5.57234,1794.6,1794.1,11.7103231]
[1743732239033,5.57234,1794.6,1794.1,6.1366231]
[1743732239433,5.57234,1794.6,1794.1,11.7103431]
[1743732239835,12.4539,1794.9,1794.4,5.57274]
[1743732240035,0.05,1794.9,1794.5,5.57247]
[1743732240335,0.05,1794.9,1794.6,5.57196]
[1743732240636,0.05,1794.9,1794.7,5.5718]
[1743732240858,0.05,1794.9,1794.6,0.05571254]
[1743732240859,0.05,1794.9,1794.6,5.57216]
[1743732241059,0.05,1794.9,1794.6,11.14429]
[1743732241249,0.05,1794.9,1794.6,12.336819]
[1743732241444,0.05,1794.9,1794.6,6.764659]
[1743732241637,0.05,1794.9,1794.6,12.336799]
[1743732241972,0.05,1794.9,1794.6,5.57213]
[1743732242184,0.05,1794.9,1794.5,6.35351]
[1743732242351,0.05,1794.9,1794.5,6.35344]
[1743732242546,0.05,1794.9,1794.6,11.14441]
[1743732242872,0.05,1794.9,1794.7,5.57195]
[1743732243167,0.05,1794.9,1794.5,6.35342]
[1743732243687,5.36797376,1794.9,1794.2,0.781]
[1743732243984,11.14487,1794.6,1794.1,5.57381]
[1743732244156,11.14479,1794.6,1794.1,5.62941095]
[1743732244355,5.5726,1794.5,1794.1,5.62941095]
[1743732244764,5.57232,1794.6,1794.1,11.20307095]
[1743732245097,5.57232,1794.6,1794.2,5.57347]
[1743732245098,5.57229,1794.6,1794.2,5.57347]
[1743732245460,14.32541,1794.7,1794.2,5.57347]
[1743732245787,14.32541,1794.7,1794.2,5.57339]
[1743732245952,19.8976,1794.7,1794.2,5.62911855]
[1743732246355,7.931,1794.7,1794.3,11.14616]
[1743732246861,7.931,1794.7,1794.3,5.57306]
[1743732247063,5.57176,1794.8,1794.3,5.57306]
[1743732247674,5.57176,1794.8,1794.3,5.57305]
[1743732248197,13.922,1794.9,1794.4,5.57283]
[1743732248371,5.57169,1794.8,1794.3,6.130465]
[1743732248577,5.57169,1794.8,1794.4,5.57283]
[1743732248788,5.57169,1794.8,1794.4,5.62855087]
[1743732248989,5.57169,1794.8,1794.4,0.05572087]
[1743732249184,5.57169,1794.8,1794.3,11.703445]
[1743732249400,5.57169,1794.8,1794.4,5.57286]
[1743732249598,5.57169,1794.8,1794.3,6.130365]
[1743732249780,5.57169,1794.8,1794.3,11.703415]
[1743732249967,5.57169,1794.8,1794.4,5.57286]
[1743732250397,5.57212,1794.7,1794.2,5.5734]
[1743732250694,2.506507,1794.8,1794.1,5.57382]
[1743732250895,5.5726,1794.5,1794.1,5.57373]
[1743732251069,11.14538,1794.5,1794.0,6.1241]
[1743732251268,5.57344,1794.3,1793.9,0.781]
[1743732251466,13.34614,1794.4,1793.9,6.3554]
[1743732251691,18.91932,1794.4,1793.9,6.3554]
[1743732251902,5.5738,1794.2,1793.7,5.57504]
[1743732252071,5.57414,1794.0,1793.6,0.813]
[1743732252274,5.5732,1794.3,1793.6,6.38828]
[1743732252275,11.14781,1794.1,1793.6,6.38828]
[1743732252594,11.14781,1794.1,1793.6,6.44402542]
[1743732252909,3.0,1794.3,1793.9,5.5744]
[1743732253131,7.773,1794.4,1794.0,5.57403]
[1743732253273,7.773,1794.4,1793.9,6.689315]
[1743732253471,13.34602,1794.4,1793.9,11.14862]
[1743732253688,7.773,1794.4,1793.8,5.57461]
[1743732253892,5.57401,1794.1,1793.7,5.57495]
[1743732254105,11.148,1794.1,1793.6,0.813]
[1743732254449,11.14725,1794.2,1793.7,5.57503]
[1743732254655,5.57357,1794.2,1793.7,5.57491]
[1743732255151,5.57357,1794.2,1793.7,11.79424567]
[1743732255357,11.58322,1794.3,1793.8,5.57448]
[1743732255522,5.57352,1794.2,1793.8,5.57448]
[1743732255721,11.58322,1794.3,1793.8,11.14908]
[1743732255922,6.01,1794.3,1793.9,5.57444]
[1743732256122,6.01,1794.3,1793.9,6.689192]
[1743732256351,6.01,1794.3,1793.8,5.57471]
[1743732256652,5.57351,1794.2,1793.8,5.57471]
[1743732257171,6.01,1794.3,1793.7,6.21936567]
[1743732257329,5.57367,1794.2,1793.7,5.57494]
[1743732257525,5.57367,1794.2,1793.7,11.14985]
[1743732257724,11.58326,1794.3,1793.8,5.63048249]
[1743732257971,11.58326,1794.3,1793.8,5.63036249]
[1743732258271,5.57428,1794.0,1793.6,0.813]
[1743732258454,5.57388,1794.1,1793.6,0.813]
[1743732258657,5.57388,1794.1,1793.6,11.96345]
[1743732258968,11.14787,1794.1,1793.6,11.96345]
[1743732259166,5.57427,1794.0,1793.6,0.813]
[1743732259469,5.57389,1794.1,1793.6,5.57537]
[1743732259762,11.14856,1794.0,1793.6,5.57537]
[1743732259971,5.57449,1793.9,1793.5,5.57564]
[1743732260329,5.57418,1794.0,1793.5,5.57557]
[1743732260544,6.39858,1794.0,1793.5,5.57553]
[1743732260769,8.57358,1794.2,1793.6,0.55]
[1743732260945,14.14726,1794.2,1793.7,5.57487]
[1743732261268,8.57358,1794.2,1793.7,11.14977]
[1743732261575,12.40765,1794.3,1793.8,5.63049222]
[1743732261873,6.01,1794.3,1793.9,0.05573787]
[1743732262025,6.01,1794.3,1794.1,5.57373]
[1743732262228,7.617,1794.4,1794.1,11.14744]
[1743732262476,7.617,1794.4,1794.1,5.57371]
[1743732263070,7.617,1794.4,1794.1,5.57368]
[1743732263270,7.617,1794.4,1794.1,6.688455]
[1743732263775,13.19013,1794.4,1793.9,5.57435]
[1743732263941,7.617,1794.4,1793.8,1.37604922]
[1743732264135,7.617,1794.4,1793.9,11.14855]
[1743732264332,18.76304,1794.4,1793.9,11.14855]
[1743732264538,18.76304,1794.4,1793.9,5.57424]
[1743732264539,13.18999,1794.4,1793.9,5.57424]
[1743732264763,11.14681,1794.3,1793.8,11.96236]
[1743732264961,5.57377,1794.2,1793.7,5.57502]
[1743732265171,13.99981,1794.4,1793.9,5.57444]
[1743732265172,8.4269,1794.4,1793.9,5.57444]
[1743732265385,13.99989,1794.4,1794.0,5.57411]
[1743732265736,19.573,1794.4,1793.9,5.57444]
[1743732265938,19.573,1794.4,1793.9,5.57432]
[1743732266231,7.617,1794.4,1793.9,0.557432]
[1743732266445,7.617,1794.4,1794.1,5.57369]
[1743732266770,7.617,1794.4,1794.0,11.14807]
[1743732267252,7.617,1794.4,1794.1,5.57379]
[1743732268684,7.617,1794.4,1794.1,5.5737]
[1743732270481,5.57363,1794.2,1793.8,5.57469]
[1743732270649,11.14665,1794.3,1793.8,6.80109122]
[1743732271180,7.617,1794.4,1793.7,6.132492]
[1743732271181,5.57398,1794.1,1793.7,6.132492]